bitfinex-derivatives/quotes_ETHF0:USTF0_20250730
["timestamp","ask_amount","ask_price","bid_price","bid_amount"]
[1753900401210,3.2078,3807.6,3807.2,0.52533]
[1753900401408,0.52533,3807.3,3806.8,3.2078]
[1753900401611,0.52534,3807.2,3807.0,0.52535]
[1753900402111,0.52534,3807.2,3806.8,3.2078]
[1753900402112,0.52531,3807.4,3807.2,0.52532]
[1753900402312,0.52533,3807.2,3807.1,0.52534]
[1753900402508,0.52533,3807.3,3807.1,0.52534]
[1753900403208,1.31316,3807.7,3806.8,3.2078]
[1753900403414,0.52535,3807.1,3807.0,0.52535]
[1753900403608,3.2078,3807.6,3807.2,0.52533]
[1753900403917,0.52533,3807.3,3807.1,0.52534]
[1753900404212,0.52535,3807.1,3806.8,3.2078]
[1753900404413,0.52544,3806.4,3806.3,3.2078]
[1753900404606,4.52128,3806.8,3805.8,3.73332]
[1753900404807,1.31354,3806.6,3805.8,3.73331]
[1753900405013,0.52551,3806.0,3805.8,3.2078]
[1753900405619,1.31379,3805.9,3805.1,21.8888]
[1753900405812,0.52557,3805.5,3805.1,21.8888]
[1753900406110,0.5256,3805.3,3805.1,3.2078]
[1753900406314,0.52565,3805.0,3804.8,0.39423368]
[1753900407414,0.52575,3804.2,3803.8,3.7336]
[1753900407618,0.52574,3804.3,3803.8,0.5258]
[1753900407912,3.2078,3804.6,3803.4,3.2078]
[1753900408109,0.52577,3804.0,3803.5,0.52584]
[1753900408813,0.52574,3804.2,3803.8,0.5258]
[1753900409417,0.52576,3804.1,3803.7,0.5258]
[1753900409609,0.52578,3804.0,3803.5,0.52584]
[1753900409805,0.52577,3804.0,3803.4,3.2078]
[1753900410007,0.52576,3804.1,3803.4,3.2078]
[1753900410312,0.52575,3804.2,3803.8,0.5258]
[1753900410712,0.52572,3804.5,3803.5,1.31461]
[1753900410913,0.52572,3804.5,3804.0,0.52576]
[1753900411114,0.52574,3804.3,3803.9,0.52578]
[1753900411420,0.52571,3804.5,3804.1,0.52575]
[1753900411713,0.52573,3804.4,3804.0,0.52577]
[1753900411916,0.52573,3804.4,3803.5,1.31461]
[1753900412306,3.73349,3804.6,3804.4,0.52572]
[1753900412512,3.73349,3804.6,3804.3,0.52572]
[1753900412817,3.7335,3804.6,3804.2,0.52574]
[1753900413113,0.52572,3804.5,3804.2,0.52574]
[1753900413308,3.7335,3804.6,3804.2,0.52574]
[1753900413508,0.52562,3805.1,3804.8,0.52565]
[1753900413713,0.52563,3805.0,3804.8,0.52566]
[1753900413913,0.52563,3805.0,3804.7,0.52567]
[1753900414108,3.2078,3805.2,3805.0,0.52563]
[1753900414315,0.5257,3804.5,3804.3,0.52573]
[1753900414514,1.31397,3805.4,3804.0,0.52576]
[1753900414515,3.2078,3804.8,3804.0,0.52576]
[1753900414722,3.73348,3804.8,3804.5,0.52569]
[1753900415714,0.52569,3804.6,3803.8,1.31451]
[1753900416014,0.52572,3804.4,3803.7,3.2078]
[1753900416214,0.52574,3804.3,3804.1,0.52576]
[1753900416414,40.8,3805.4,3803.7,3.2078]
[1753900416415,3.2078,3804.4,3803.7,3.2078]
[1753900416716,4.52213,3804.4,3803.7,3.2078]
[1753900417218,3.2078,3804.4,3803.7,3.2078]
[1753900417422,0.5258,3803.9,3803.7,3.2078]
[1753900419311,1.31436,3804.3,3803.3,3.2078]
[1753900419514,1.31415,3804.9,3803.3,3.2078]
[1753900419515,0.52586,3803.4,3803.3,3.2078]
[1753900420316,0.52585,3803.5,3803.3,3.2078]
[1753900420913,0.52589,3803.2,3802.8,3.2078]
[1753900421115,0.52589,3803.2,3803.0,0.5259]
[1753900421619,3.73363,3803.6,3803.4,0.52586]
[1753900422021,3.2078,3803.6,3803.4,0.52586]
[1753900422322,3.2078,3804.6,3803.5,3.2078]
[1753900422519,3.2078,3805.1,3803.9,3.2078]
[1753900422824,0.52574,3804.3,3803.9,3.2078]
[1753900423014,0.52571,3804.5,3804.3,0.52572]
[1753900423724,0.52577,3804.1,3803.9,3.73358]
[1753900424022,1.31416,3804.8,3803.1,19.99772]
[1753900424023,3.2078,3804.2,3803.6,0.52583]
[1753900424217,0.52581,3803.8,3803.5,3.73364]
[1753900424417,0.52581,3803.8,3803.6,0.52582]
[1753900424721,1.31444,3804.0,3803.1,3.73369]
[1753900424920,0.52588,3803.3,3803.1,3.73369]
[1753900425120,0.52588,3803.3,3803.1,3.2078]
[1753900425725,0.52586,3803.4,3803.2,0.52588]
[1753900425922,0.52588,3803.2,3803.1,3.2078]
[1753900426123,1.31464,3803.4,3802.7,3.2078]
[1753900426320,0.52593,3802.9,3802.7,3.2078]
[1753900427526,0.52592,3803.0,3802.7,3.2078]
[1753900427725,0.52592,3803.0,3802.7,3.73374]
[1753900428528,0.52589,3803.2,3802.7,3.2078]
[1753900428728,3.2078,3803.4,3802.7,3.2078]
[1753900429234,0.52593,3802.9,3802.7,3.73375]
[1753900429621,0.52593,3802.9,3802.7,1.4107]
[1753900429928,6.58608234,3802.8,3801.8,0.39454476]
[1753900430121,3.2078,3802.5,3801.8,0.39454476]
[1753900430325,0.52599,3802.4,3801.8,0.39454476]
[1753900430528,3.2078,3802.5,3801.8,0.39454476]
[1753900431021,0.52594,3802.8,3802.1,0.52603]
[1753900431231,0.52594,3802.8,3802.2,3.2078]
[1753900431536,0.52594,3802.8,3802.3,0.52601]
[1753900431830,3.2078,3803.1,3802.2,3.2078]
[1753900432028,0.52587,3803.3,3802.6,3.2078]
[1753900432332,3.2078,3803.5,3802.8,0.52594]
[1753900432533,3.2078,3803.5,3802.7,0.52595]
[1753900432729,0.52585,3803.4,3802.7,0.52595]
[1753900432932,0.52589,3803.2,3802.6,3.73376]
[1753900433433,0.52587,3803.3,3802.6,3.73376]
[1753900433733,0.52599,3802.5,3801.9,0.52606]
[1753900433933,3.2078,3802.6,3801.8,3.60234476]
[1753900434231,0.52604,3802.1,3801.8,0.39454476]
[1753900435234,5.52604,3802.1,3801.8,4.76e-06]
[1753900435635,0.52606,3801.9,3801.8,4.76e-06]
[1753900435834,19.26906,3801.9,3801.8,4.76e-06]
[1753900436032,24.26906,3801.9,3801.8,4.76e-06]
[1753900436538,0.52606,3801.9,3801.8,4.76e-06]
[1753900440441,5.52606,3801.9,3801.8,4.76e-06]
[1753900441435,0.52606,3801.9,3801.8,4.76e-06]
[1753900441643,19.24806,3801.9,3801.8,4.76e-06]
[1753900442041,0.52606,3801.9,3801.8,4.76e-06]
[1753900444549,19.26306,3801.9,3801.8,4.76e-06]
[1753900444848,0.52606,3801.9,3801.8,4.76e-06]
[1753900446250,3.2078,3802.2,3801.8,4.76e-06]
[1753900446449,3.2078,3802.2,3802.0,0.52604]
[1753900446745,0.5259,3803.1,3802.8,0.52592]
[1753900446946,3.73369,3803.2,3802.3,3.2078]
[1753900447339,3.2078,3803.2,3803.0,0.5259]
[1753900449346,3.2078,3803.2,3802.3,3.2078]
[1753900449543,3.2078,3803.2,3802.2,3.2078]
[1753900449745,0.52598,3802.5,3802.3,0.52601]
[1753900450047,0.52593,3802.9,3802.6,0.52596]
[1753900450246,3.2078,3803.2,3802.7,0.52594]
[1753900450448,3.2078,3803.2,3803.0,0.52591]
[1753900450643,0.5259,3803.1,3803.0,0.52591]
[1753900450948,3.2078,3803.2,3803.0,0.52591]
[1753900451343,1.31431,3804.4,3803.2,1.31471]
[1753900451544,3.2078,3804.5,3804.0,0.52577]
[1753900451748,3.2078,3804.5,3804.4,0.52572]
[1753900451952,3.2078,3804.5,3804.3,0.52572]
[1753900452149,3.73351,3804.5,3804.3,0.52572]
[1753900452345,3.2078,3804.5,3804.3,0.52572]
[1753900452551,0.52573,3804.3,3804.1,0.52575]
[1753900453052,0.52573,3804.4,3804.1,0.52575]
[1753900453256,3.73351,3804.5,3804.3,0.52573]
[1753900453552,0.52573,3804.4,3804.2,0.52574]
[1753900453952,3.2078,3804.5,3804.3,0.52572]
[1753900454356,3.2078,3804.5,3804.2,0.52574]
[1753900454549,0.52576,3804.2,3804.0,0.52576]
[1753900455249,3.2078,3804.5,3803.9,3.2078]
[1753900455446,3.2078,3804.5,3804.3,0.52572]
[1753900455650,3.73342,3805.1,3804.9,0.52565]
[1753900455953,3.2078,3805.1,3803.9,3.2078]
[1753900456352,3.2078,3805.5,3804.3,3.2078]
[1753900456553,3.2078,3805.5,3805.3,0.52558]
[1753900456755,0.52545,3806.4,3805.4,1.31395]
[1753900457053,0.52544,3806.4,3806.3,3.2078]
[1753900457362,3.2078,3808.2,3806.4,1.31361]
[1753900457549,38.25,3809.7,3806.3,3.2078]
[1753900457550,3.2078,3808.6,3807.8,0.52524]
[1753900457859,0.52515,3808.5,3808.1,3.2078]
[1753900458054,0.5251,3808.9,3808.4,0.52516]
[1753900458262,3.2078,3809.0,3808.1,3.2078]
[1753900458954,3.2078,3809.0,3808.8,0.5251]
[1753900459355,0.38,3809.7,3809.4,0.52502]
[1753900459658,3.2078,3811.2,3809.5,3.2078]
[1753900459960,0.52479,3811.1,3810.4,3.2078]
[1753900460155,0.52485,3810.7,3809.9,3.2078]
[1753900460349,3.2078,3811.2,3810.4,3.2078]
[1753900460550,3.2078,3811.6,3810.4,3.2078]
[1753900460859,18.744,3812.0,3811.1,3.2078]
[1753900461055,41.0618,3812.2,3811.1,3.2078]
[1753900461359,0.52461,3812.5,3811.4,0.52475]
[1753900461559,0.52461,3812.5,3811.6,3.2078]
[1753900461759,1.364473,3812.8,3810.7,3.2078]
[1753900461760,3.2078,3812.6,3810.7,3.2078]
[1753900461951,0.52479,3811.2,3810.7,3.2078]
[1753900462157,0.52475,3811.5,3810.7,3.2078]
[1753900462357,0.52481,3811.0,3810.2,0.52492]
[1753900462559,3.2078,3811.2,3809.7,0.52498]
[1753900462762,3.2078,3810.8,3809.3,3.2078]
[1753900462953,3.2078,3810.4,3809.3,3.2078]
[1753900463155,18.754,3811.5,3810.2,3.2078]
[1753900463156,0.52481,3811.0,3810.2,3.2078]
[1753900463356,3.2078,3811.6,3810.1,3.73273]
[1753900463560,3.2078,3811.1,3810.1,3.73273]
[1753900463864,3.2078,3811.1,3810.2,0.52492]
[1753900464063,3.2078,3811.1,3810.1,3.2078]
[1753900464264,0.52466,3812.1,3811.2,0.52477]
[1753900464567,0.52469,3811.9,3811.3,3.2078]
[1753900464763,0.52472,3811.6,3811.3,3.01089117]
[1753900464961,0.52467,3812.0,3811.3,3.2078]
[1753900465163,3.2078,3812.4,3811.3,3.2078]
[1753900465358,3.2078,3812.4,3811.9,3.2078]
[1753900465663,0.38,3812.7,3812.5,0.52459]
[1753900465859,0.38,3812.7,3812.3,3.2078]
[1753900466060,0.90457,3812.7,3812.2,3.2078]
[1753900466257,0.52459,3812.6,3811.9,0.52468]
[1753900466461,0.38,3812.7,3812.3,0.52463]
[1753900466666,0.52459,3812.6,3811.8,3.73249]
[1753900467258,0.38,3812.7,3811.8,3.2078]
[1753900467464,0.38,3812.7,3812.4,0.5246]
[1753900467662,0.38,3812.7,3812.2,3.2078]
[1753900467866,0.52468,3811.9,3811.8,3.2078]
[1753900468066,0.52466,3812.1,3811.8,3.2078]
[1753900468264,1.31157,3812.4,3811.2,3.2078]
[1753900468466,0.52473,3811.6,3811.2,3.2078]
[1753900468670,3.2078,3812.0,3810.8,3.2078]
[1753900468970,3.2078,3811.6,3810.8,3.2078]
[1753900469165,3.2078,3812.0,3810.6,3.2078]
[1753900469359,0.52477,3811.3,3810.8,0.52483]
[1753900469558,3.2078,3812.5,3811.1,1.31199]
[1753900469758,3.7324,3812.5,3811.9,3.73248]
[1753900469964,3.2078,3812.5,3811.9,3.2078]
[1753900470165,0.38,3812.7,3812.5,0.52459]
[1753900470666,37.807,3814.1,3813.0,0.52452]
[1753900470667,0.52447,3813.5,3813.0,0.52452]
[1753900470970,0.52446,3813.6,3813.0,0.52453]
[1753900471168,0.52452,3813.1,3812.5,0.52459]
[1753900471467,3.2078,3813.0,3812.0,3.73246]
[1753900471775,0.52468,3812.0,3811.5,3.2078]
[1753900471965,0.52457,3812.7,3812.1,0.52465]
[1753900472163,1.31137,3812.9,3811.4,3.2078]
[1753900472365,1.31137,3812.9,3812.5,0.5246]
[1753900472366,0.52455,3812.9,3812.5,0.5246]
[1753900472565,0.52455,3812.9,3811.8,3.2078]
[1753900472566,0.52458,3812.7,3812.3,0.52462]
[1753900472767,0.52459,3812.6,3811.9,3.2078]
[1753900472966,0.52453,3813.0,3812.6,0.52458]
[1753900473168,0.52448,3813.4,3812.9,0.52454]
[1753900473367,0.52453,3813.0,3812.3,3.2078]
[1753900473674,0.52451,3813.2,3812.8,0.52456]
[1753900473974,0.52457,3812.8,3812.5,0.5246]
[1753900474168,0.52445,3813.6,3812.5,1.31149]
[1753900474369,0.52445,3813.6,3811.2,2.62386]
[1753900474370,0.52443,3813.8,3813.2,0.5245]
[1753900474669,3.73216,3814.3,3813.1,3.2078]
[1753900474970,0.52441,3813.9,3813.6,0.52444]
[1753900475172,0.52442,3813.8,3813.4,0.52448]
[1753900475371,1.31052,3815.4,3813.7,3.2078]
[1753900475574,0.52434,3814.4,3813.6,3.2078]
[1753900475777,0.52426,3815.0,3814.5,0.52431]
[1753900475970,3.2078,3814.7,3813.8,3.2078]
[1753900476170,0.52434,3814.4,3813.8,3.2078]
[1753900476367,3.2078,3814.7,3813.8,3.2078]
[1753900476568,3.2078,3815.4,3814.4,3.2078]
[1753900476774,1.31058,3815.2,3814.5,3.2078]
[1753900476973,3.2078,3815.4,3814.8,0.52427]
[1753900477271,3.2078,3815.4,3814.5,3.2078]
[1753900477671,0.52429,3814.8,3814.5,3.73212]
[1753900477869,0.52428,3814.9,3814.5,3.73212]
[1753900478069,0.52433,3814.5,3814.0,0.52439]
[1753900478268,1.31046,3815.6,3813.9,3.2078]
[1753900478269,0.52438,3814.1,3813.9,3.2078]
[1753900478773,3.2078,3814.2,3813.0,3.2078]
[1753900478965,0.52451,3813.2,3813.0,3.2078]
[1753900479168,0.52452,3813.1,3812.7,3.2078]
[1753900479365,0.5245,3813.2,3812.7,3.73236]
[1753900479569,0.5245,3813.2,3812.7,3.2078]
[1753900479767,0.52452,3813.1,3812.7,3.73237]
[1753900479974,1.31117,3813.5,3812.7,3.2078]
[1753900480175,0.52455,3812.9,3812.7,3.2078]
[1753900480479,0.52463,3812.3,3812.2,40.9898]
[1753900480681,1.31127,3813.2,3811.1,1.31197]
[1753900480682,0.52468,3811.9,3811.6,3.73251]
[1753900481171,1.31147,3812.6,3811.6,3.2078]
[1753900481371,0.52462,3812.4,3812.0,0.52467]
[1753900481572,0.5246,3812.6,3812.2,0.52464]
[1753900481772,0.52462,3812.4,3811.9,0.52467]
[1753900481978,0.52462,3812.4,3812.1,0.52465]
[1753900482177,0.52459,3812.6,3812.3,3.2078]
[1753900482477,0.52459,3812.6,3811.6,1.31181]
[1753900482478,0.52461,3812.5,3812.1,0.52465]
[1753900482873,0.52459,3812.6,3812.3,0.52462]
[1753900483177,3.2078,3813.5,3812.3,3.2078]
[1753900483578,0.52446,3813.6,3813.2,0.5245]
[1753900483774,3.2078,3813.5,3812.7,3.2078]
[1753900484172,0.5245,3813.3,3813.0,0.52452]
[1753900484374,0.52445,3813.7,3813.4,0.52447]
[1753900484575,0.52446,3813.5,3813.3,0.52448]
[1753900484876,4.51883,3813.9,3812.8,3.2078]
[1753900485077,3.2078,3813.9,3812.8,3.2078]
[1753900485274,0.52447,3813.5,3813.2,0.5245]
[1753900485470,0.52449,3813.4,3813.1,0.52451]
[1753900485675,3.2078,3813.5,3812.8,3.2078]
[1753900485976,3.2078,3813.5,3812.8,3.73235]
[1753900486176,3.73227,3813.5,3813.2,0.52449]
[1753900486478,3.2078,3813.5,3813.3,0.52448]
[1753900486679,3.73222,3813.9,3812.9,1.31137]
[1753900486878,3.2078,3813.9,3813.3,0.52448]
[1753900487079,0.52448,3813.4,3813.1,0.5245]
[1753900487278,0.52447,3813.5,3813.3,0.52449]
[1753900487581,0.52449,3813.4,3813.1,0.5245]
[1753900487781,0.52446,3813.6,3812.8,3.2078]
[1753900487974,0.52447,3813.5,3813.2,0.52449]
[1753900488180,0.52454,3813.0,3812.8,3.2078]
[1753900488485,0.52459,3812.6,3812.4,0.5246]
[1753900488682,3.2078,3813.1,3812.0,3.2078]
[1753900488980,3.2078,3813.1,3812.6,0.52457]
[1753900489180,3.2078,3812.7,3812.0,3.2078]
[1753900489377,0.52464,3812.2,3811.9,0.52467]
[1753900489573,3.2078,3812.7,3811.7,1.31178]
[1753900489775,0.52465,3812.2,3811.9,0.52468]
[1753900489972,0.52463,3812.3,3812.0,0.52466]
[1753900490180,1.31147,3812.6,3811.9,0.52468]
[1753900490380,3.2078,3812.7,3812.0,0.52466]
[1753900490675,3.2078,3812.7,3811.6,3.2078]
[1753900490676,1.31147,3812.6,3811.6,3.2078]
[1753900490974,1.31147,3812.6,3811.3,1.31191]
[1753900490975,0.52482,3811.0,3810.6,0.52486]
[1753900491182,0.52482,3811.0,3810.7,0.52485]
[1753900491481,3.2078,3811.3,3810.4,3.2078]
[1753900491675,0.52481,3811.0,3810.4,3.2078]
[1753900491978,0.52481,3811.0,3810.6,0.52486]
[1753900492178,3.2078,3811.3,3810.8,0.91844297]
[1753900492378,0.5248,3811.1,3810.8,0.39361297]
[1753900493181,0.52482,3810.9,3810.8,0.39361297]
[1753900493485,3.73262,3810.9,3810.8,0.39361297]
[1753900494685,0.52483,3810.8,3809.9,3.2078]
[1753900494877,0.52486,3810.7,3810.3,0.52489]
[1753900495075,0.52486,3810.7,3810.2,0.52491]
[1753900495375,3.2078,3810.9,3810.2,0.52492]
[1753900495580,1.31209,3810.8,3809.9,3.2078]
[1753900495776,0.52492,3810.3,3810.0,0.52494]
[1753900496078,0.5249,3810.3,3809.9,3.73275]
[1753900496272,0.52494,3810.1,3809.5,3.2078]
[1753900496478,3.2078,3810.5,3809.5,3.2078]
[1753900497174,3.2078,3810.5,3810.1,0.52492]
[1753900497379,0.52486,3810.7,3810.5,0.52487]
[1753900497679,3.73256,3811.4,3810.5,3.2078]
[1753900497874,0.52481,3811.1,3810.4,3.2078]
[1753900498081,3.2078,3811.0,3810.4,3.2078]
[1753900498281,0.52478,3811.3,3810.9,0.52482]
[1753900498481,0.52481,3811.0,3810.8,0.52483]
[1753900498680,0.52481,3811.0,3810.7,0.52484]
[1753900498883,0.52478,3811.3,3810.5,0.52488]
[1753900499084,0.52476,3811.4,3811.1,0.52478]
[1753900499586,0.52479,3811.2,3810.5,1.3122]
[1753900499887,0.52479,3811.2,3810.9,0.52482]
[1753900500084,0.52488,3810.6,3810.4,3.2078]
[1753900500287,0.52492,3810.3,3809.6,4.5203]
[1753900500482,3.2078,3810.6,3809.6,4.5203]
[1753900500683,3.73266,3810.6,3810.4,0.52489]
[1753900500882,3.2078,3811.3,3810.7,0.52484]
[1753900501083,0.52485,3810.8,3810.5,0.52488]
[1753900501284,1.31189,3811.4,3810.4,3.73269]
[1753900501484,0.52478,3811.2,3810.4,3.2078]
[1753900501694,0.52486,3810.6,3810.0,0.52494]
[1753900501878,0.52494,3810.1,3809.9,3.2078]
[1753900502380,0.52499,3809.7,3809.4,0.52502]
[1753900502579,3.2078,3809.7,3808.4,3.2078]
[1753900502788,0.52502,3809.5,3809.2,3.2078]
[1753900502979,0.52501,3809.6,3809.1,0.52506]
[1753900503386,3.2078,3809.9,3808.7,3.2078]
[1753900503985,3.2078,3809.1,3807.8,0.39392308]
[1753900504187,3.2078,3808.5,3807.8,0.91916308]
[1753900504387,0.5252,3808.2,3807.8,0.39392308]
[1753900504593,0.52521,3808.1,3807.8,0.39392308]
[1753900504888,0.52518,3808.3,3807.9,0.52523]
[1753900505088,0.5252,3808.2,3807.8,0.91916308]
[1753900505287,0.5252,3808.2,3807.8,0.39392308]
[1753900505484,0.52522,3808.0,3807.8,0.39392308]
[1753900505686,3.2078,3808.5,3807.9,0.52523]
[1753900505886,3.2078,3808.1,3807.8,0.39392308]
[1753900506090,0.52522,3808.0,3807.8,0.39392308]
[1753900507591,3.2078,3808.2,3807.8,0.39392308]
[1753900507892,0.52521,3808.1,3807.8,0.39392308]
[1753900508080,3.2078,3808.4,3807.9,0.52523]
[1753900508282,0.5252,3808.2,3807.8,0.91916308]
[1753900508791,0.52521,3808.1,3807.8,0.39392308]
[1753900508988,3.2078,3807.9,3807.8,0.39392308]
[1753900509392,4.52091,3807.9,3806.8,0.52538]
[1753900509694,3.2078,3807.3,3806.4,3.2078]
[1753900509994,0.5254,3806.7,3806.4,3.73324]
[1753900510191,3.2078,3807.3,3806.7,0.52539]
[1753900510386,3.2078,3807.3,3806.6,0.52541]
[1753900510689,44.0078,3807.9,3806.6,1.31354]
[1753900510886,44.0078,3807.9,3805.7,1.31384]
[1753900510887,3.73299,3808.3,3807.4,3.2078]
[1753900511089,3.2078,3808.9,3808.2,0.52519]
[1753900511393,0.52516,3808.5,3808.1,0.5252]
[1753900511594,3.2078,3808.5,3807.8,0.52525]
[1753900511891,0.52526,3807.7,3807.1,3.2078]
[1753900512190,1.31275,3808.9,3808.2,0.52518]
[1753900512191,0.52516,3808.5,3808.2,0.52518]
[1753900512491,3.2078,3809.3,3808.2,1.31298]
[1753900512694,0.52509,3809.0,3808.7,0.52511]
[1753900512989,1.31264,3809.2,3808.1,3.2078]
[1753900513186,18.891,3809.8,3808.2,0.52518]
[1753900513187,0.52516,3808.5,3808.2,0.52518]
[1753900513395,3.73289,3809.0,3808.7,0.52512]
[1753900513698,0.52511,3808.8,3808.1,3.2078]
[1753900514293,3.2078,3809.0,3808.8,0.52509]
[1753900514594,3.73289,3809.0,3808.7,0.52511]
[1753900514789,3.2078,3809.0,3808.9,0.52509]
[1753900514991,3.2078,3809.0,3808.8,0.5251]
[1753900515192,3.2078,3809.6,3809.1,0.52506]
[1753900515390,0.52503,3809.4,3809.2,0.52505]
[1753900515594,0.52502,3809.5,3809.2,0.52504]
[1753900515795,0.38,3809.7,3809.5,0.525]
[1753900515995,0.38,3809.7,3809.6,3.2078]
[1753900518388,1.31193,3811.3,3809.6,8.2078]
[1753900518599,0.52487,3810.6,3810.4,3.2078]
[1753900518797,1.31191,3811.3,3809.4,1.31255]
[1753900518798,0.52487,3810.5,3810.3,0.5249]
[1753900518993,0.52487,3810.5,3810.1,0.52492]
[1753900519194,1.31198,3811.1,3810.3,3.2078]
[1753900519395,4.51971,3811.3,3810.3,3.2078]
[1753900519606,4.51971,3811.3,3810.3,3.7327]
[1753900519807,0.52486,3810.6,3810.3,3.7327]
[1753900520008,0.52489,3810.4,3810.3,3.2078]
[1753900520214,1.31212,3810.7,3809.9,3.2078]
[1753900520713,0.52496,3810.0,3809.4,3.2078]
[1753900521413,0.52498,3809.8,3809.5,0.52501]
[1753900521714,4.52005,3810.4,3809.4,3.2078]
[1753900522115,3.2078,3810.4,3809.6,1.31249]
[1753900522315,0.52489,3810.4,3809.9,3.2078]
[1753900522512,0.52491,3810.3,3809.9,3.2078]
[1753900522709,0.52489,3810.5,3809.9,3.2078]
[1753900522908,0.52491,3810.3,3809.9,3.2078]
[1753900523114,0.52485,3810.7,3810.0,1.31236]
[1753900523310,3.2078,3811.2,3810.4,1.31223]
[1753900523510,3.73259,3811.2,3811.0,0.5248]
[1753900523812,0.52476,3811.4,3811.1,0.52478]
[1753900524016,0.52474,3811.5,3811.2,0.52477]
[1753900524308,3.2078,3812.1,3810.8,1.31206]
[1753900524514,0.52476,3811.3,3811.1,3.2078]
[1753900524704,3.2078,3812.1,3811.5,0.52472]
[1753900524907,3.2078,3812.1,3811.3,0.52476]
[1753900525106,0.52472,3811.7,3811.4,0.52474]
[1753900525509,0.52467,3812.0,3811.8,0.52469]
[1753900525713,0.52467,3812.0,3811.7,0.5247]
[1753900526017,0.52467,3812.0,3811.6,0.52472]
[1753900526210,3.2078,3812.1,3812.0,0.52467]
[1753900526815,3.2078,3812.1,3811.9,0.52468]
[1753900527209,3.2078,3812.1,3811.6,3.2078]
[1753900527514,3.2078,3812.1,3811.9,0.52468]
[1753900528409,0.5247,3811.8,3811.6,3.2078]
[1753900528710,4.51944,3812.1,3810.9,3.2078]
[1753900528916,3.2078,3812.1,3810.9,4.51982]
[1753900529113,0.52476,3811.4,3811.2,0.52478]
[1753900529316,1.31171,3811.9,3810.9,3.2078]
[1753900529504,1.31164,3812.2,3810.1,39.1213]
[1753900529505,1.31192,3811.3,3810.5,3.2078]
[1753900529710,0.52486,3810.6,3810.5,3.2078]
[1753900530409,3.2078,3811.7,3810.5,9.51996]
[1753900530615,0.52473,3811.6,3811.4,0.52475]
[1753900530814,0.52469,3811.9,3811.6,0.52472]
[1753900531113,3.2078,3812.3,3811.6,3.2078]
[1753900531312,3.2078,3812.3,3811.8,0.52468]
[1753900531509,0.52467,3812.1,3811.8,0.52468]
[1753900531705,0.52468,3811.9,3811.7,0.5247]
[1753900531910,4.51938,3812.3,3811.6,0.52472]
[1753900532213,0.52466,3812.1,3811.9,0.52467]
[1753900532411,0.52469,3811.9,3811.7,0.5247]
[1753900532612,0.52467,3812.0,3811.8,0.52468]
[1753900533517,0.52466,3812.1,3812.0,0.52467]
[1753900533718,0.52464,3812.3,3811.6,3.2078]
[1753900534013,0.52458,3812.6,3812.2,0.52463]
[1753900534218,0.38,3812.7,3812.1,0.52465]
[1753900534919,0.38,3812.7,3811.7,1.31175]
[1753900535216,0.38,3812.7,3812.2,0.52463]
[1753900535617,0.52464,3812.2,3811.6,3.2078]
[1753900535809,0.52463,3812.3,3811.6,3.2078]
[1753900536012,0.52465,3812.2,3812.0,0.52466]
[1753900536209,1.69145,3812.7,3812.0,0.52466]
[1753900536516,0.52463,3812.3,3812.1,0.52464]
[1753900536714,3.2078,3812.4,3811.1,3.2078]
[1753900536913,1.31162,3812.2,3811.6,0.52471]
[1753900537316,0.5247,3811.8,3811.6,0.52471]
[1753900537515,0.52469,3811.9,3811.8,0.52469]
[1753900537710,0.52469,3811.9,3811.7,0.5247]
[1753900537911,3.2078,3812.4,3811.1,3.2078]
[1753900538116,0.52468,3812.0,3811.4,1.31188]
[1753900538313,0.52465,3812.2,3811.7,3.2078]
[1753900538518,0.52465,3812.2,3812.0,0.52466]
[1753900538718,0.52463,3812.3,3812.1,0.52464]
[1753900539524,0.52466,3812.1,3811.9,0.52467]
[1753900539822,0.52466,3812.1,3812.0,0.52466]
[1753900540322,3.73242,3812.4,3812.2,0.52463]
[1753900540514,0.38,3812.7,3812.6,0.52458]
[1753900542022,0.52442,3813.9,3813.4,0.52446]
[1753900542325,0.5244,3814.0,3813.2,3.2078]
[1753900542520,0.5244,3814.0,3813.7,0.52443]
[1753900542822,3.2078,3814.5,3813.6,3.2078]
[1753900543017,0.52443,3813.8,3813.6,3.2078]
[1753900543424,0.52441,3813.9,3813.6,3.2078]
[1753900543615,0.52442,3813.8,3813.6,3.2078]
[1753900543819,3.2078,3814.5,3813.6,3.2078]
[1753900544025,1.31089,3814.3,3813.2,3.73229]
[1753900544325,0.52446,3813.5,3813.2,3.73229]
[1753900544514,0.52449,3813.3,3813.2,3.2078]
[1753900544713,3.2078,3813.7,3812.7,0.52457]
[1753900544924,3.2078,3813.3,3812.5,0.5246]
[1753900545128,0.52458,3812.7,3812.3,3.73242]
[1753900545427,0.5246,3812.5,3812.3,3.2078]
[1753900545626,1.31116,3813.5,3812.3,3.2078]
[1753900545627,0.52461,3812.4,3812.3,3.2078]
[1753900545922,0.52459,3812.6,3812.3,3.2078]
[1753900546127,0.52461,3812.5,3812.3,3.73243]
[1753900546321,0.52461,3812.5,3812.3,3.2078]
[1753900546826,0.52459,3812.6,3812.3,3.73242]
[1753900547024,0.52461,3812.5,3812.3,3.2078]
[1753900548120,0.52466,3812.1,3811.9,3.2078]
[1753900548425,0.52466,3812.1,3811.3,37.781]
[1753900548426,0.52473,3811.6,3811.3,38.30575]
[1753900548621,0.52465,3812.1,3811.8,0.52468]
[1753900548822,0.52471,3811.8,3811.6,0.52471]